fUSD/lending_fUSD_20240412
["ID","MTS","AMOUNT","RATE_DAILY","PERIOD"]
[322215284,1712880632067,-279.717169,0.00020548,2]
[322215285,1712880632077,-117.36667521,0.00020746,2]
[322215444,1712880638304,-32.63332479,0.00020746,2]
[322215445,1712880638315,-152.96337254,0.00020787,2]
[322215449,1712880638326,-811.75834556,0.000209,2]
[322215452,1712880638341,-4320.98370651,0.000209,2]
[322215456,1712880638356,-984.1404655,0.000209,2]
[322215457,1712880638366,-167.5866725,0.000209,2]
[322215460,1712880638377,-555.42492911,0.000209,2]
[322215462,1712880638846,-1526.13329376,0.000209,2]
[322215463,1712880638856,-153.86908161,0.000209,2]
[322215464,1712880638866,-5554.4447205,0.000209,2]
[322215465,1712880638876,-17098.02680589,0.000209,2]
[322215466,1712880638886,-306.88121887,0.000209,2]
[322215467,1712880638895,-5830.78615605,0.00020996,2]
[322215468,1712880638905,-4098.45034127,0.00020997,2]
[322215469,1712880638914,-678.53987833,0.00020997,2]
[322215470,1712880638924,-4311.7785482,0.00020997,2]
[322215471,1712880638933,-155.0,0.00020997,2]
[322215472,1712880638943,-155.0,0.00020997,2]
[322215473,1712880638953,-268.14558605,0.00020997,2]
[322215474,1712880638963,-259.73214105,0.00020997,2]
[322215475,1712880638972,-778.75719943,0.00020997,2]
[322215476,1712880638981,-166.91997935,0.00020997,2]
[322215477,1712880638991,-205.70360312,0.00020997,2]
[322215478,1712880639000,-155.0,0.00020997,2]
[322215479,1712880639010,-314.95345249,0.00020997,2]
[322215480,1712880639019,-562.27582059,0.00020997,2]
[322215484,1712880639898,-833.45658432,0.00020997,2]
[322215485,1712880639915,-346.52530127,0.00020997,2]
[322215529,1712880642930,-982.31000015,0.00020997,2]
[322215530,1712880643146,-2769.55843466,0.00020996,2]
[322215531,1712880643156,-337.60824199,0.00020997,2]
[322215532,1712880643310,-1642.9089942,0.00020997,2]
[322215533,1712880643320,-1360.37043063,0.00020997,2]
[322215534,1712880643329,-783.24526,0.00020997,2]
[322215535,1712880643338,-301.81309237,0.00020998,2]
[322215536,1712880643347,-168.3462966,0.00020998,2]
[322215537,1712880643356,-263.09163061,0.00020998,2]
[322215538,1712880643365,-735.98049015,0.00020998,2]
[322215540,1712880643374,-304.04500458,0.00020998,2]
[322215542,1712880643383,-224.24937934,0.00020998,2]
[322215564,1712880646000,-541.90229267,0.00020998,2]
[322215565,1712880646016,-294.40121869,0.00020998,2]
[322215566,1712880646025,-113.58137815,0.00020998,2]
[322215567,1712880694559,1743.70839054,0.00015749,2]
[322215569,1712880987364,446.01579801,0.00020997,60]
[322215570,1712881291133,468.54,0.0001891,2]
[322215573,1712881433574,1277.27,0.00020389,2]
[322215579,1712881547800,5053.56121493,3e-05,30]
[322215596,1712881765401,183.63,0.00020175,2]
[322215600,1712881799103,460.99,0.00018244,2]
[322215601,1712881802694,150.0,0.00020175,2]
[322215602,1712881803001,150.0,0.00020175,2]
[322215603,1712881803265,150.0,0.00020175,2]
[322215604,1712881803494,150.0,0.00020175,2]
[322215605,1712881803705,150.0,0.00020175,2]
[322215606,1712881803933,150.0,0.00020175,2]
[322215607,1712881804167,150.0,0.00020175,2]
[322215608,1712881804386,150.0,0.00020175,2]
[322215609,1712881804775,150.0,0.00020175,2]
[322215610,1712881805244,150.0,0.00020175,2]
[322215611,1712881805549,150.0,0.00020175,2]
[322215612,1712881805748,150.0,0.00020175,2]
[322215613,1712881805961,150.0,0.00020175,2]
[322215614,1712881806147,150.0,0.00020175,2]
[322215615,1712881806351,222.18183667,0.00020175,2]
[322215627,1712881832208,-236.30320235,0.00020507,2]
[322215628,1712881832218,-460.99,0.00020508,2]
[322215629,1712881832227,-251.745452,0.00020548,2]
[322215630,1712881832238,-1000.0,0.00020621,2]
[322215631,1712881832247,-209.01,0.00020756,2]
[322215632,1712881832257,-91.95134565,0.00020788,2]
[322215633,1712881832370,-61.01202689,0.00020788,2]
[322215634,1712881832379,-709.46054174,0.0002079,2]
[322215645,1712881838329,-224.71963826,0.0002079,2]
[322215646,1712881838340,-15388.22412531,0.00020798,2]
[322215647,1712881838349,-4999.00024845,0.00020798,2]
[322215648,1712881838358,-2500.0,0.00020798,2]
[322215649,1712881838367,-605.36348535,0.00020897,2]
[322215650,1712881838377,-76938.0857588,0.00020898,2]
[322215658,1712881838868,-2961.87697601,0.00020898,2]
[322215682,1712881840091,-25141.0290407,0.00020898,2]
[322215683,1712881840206,-1319.0,0.00020898,2]
[322215684,1712881840218,-276.64453965,0.00020898,2]
[322215685,1712881840230,-1055.32050203,0.00020898,2]
[322215686,1712881840643,-1098.40955401,0.00020898,2]
[322215704,1712881843114,-494.84732701,0.00020898,2]
[322215705,1712881843231,-135714.78630179,0.00020898,2]
[322215706,1712881843240,-1000.0,0.00020898,2]
[322215707,1712881843250,-153.86908161,0.00020899,2]
[322215708,1712881843259,-1821.36344502,0.00020899,2]
[322215709,1712881843268,-306.88121887,0.00020899,2]
[322215710,1712881843277,-1000.0,0.000209,2]
[322215711,1712881843286,-5607.1423078,0.000209,2]
[322215712,1712881843296,-167.5866725,0.000209,2]
[322215713,1712881843305,-470.66,0.00020988,3]
[322215714,1712881843315,-157.041209,0.00020995,3]
[322215715,1712881843323,-157.041209,0.00020995,3]
[322215716,1712881843333,-155.38576501,0.00020996,2]
[322215717,1712881843342,-157.041209,0.00020996,3]
[322215718,1712881843352,-157.041209,0.00020996,3]
[322215719,1712881843361,-298.57199912,0.00020997,2]
[322215720,1712881843370,-157.041209,0.00020997,3]
[322215721,1712881843380,-157.041209,0.00020997,3]
[322215722,1712881843390,-295.55148042,0.00020998,2]
[322215723,1712881843399,-640.08300789,0.00020998,2]
[322215724,1712881843408,-222.36183567,0.00020998,2]
[322215725,1712881843417,-3862.26830008,0.00020998,2]
[322215726,1712881843426,-1298.76033688,0.00020998,2]
[322215727,1712881843436,-361.37576456,0.00020998,2]
[322215728,1712881843445,-1762.93005705,0.00020998,2]
[322215729,1712881843454,-1840.76884087,0.00020998,2]
[322215730,1712881843463,-190.04540674,0.00020998,2]
[322215731,1712881843472,-215.91200535,0.00020998,2]
[322215732,1712881843481,-155.0,0.00020998,2]
[322215733,1712881843490,-800.39510704,0.00020998,2]
[322215734,1712881843500,-200.0,0.00020998,2]
[322215735,1712881843509,-156.86509409,0.00020998,2]
[322215736,1712881843519,-1985.80686433,0.00020998,2]
[322215737,1712881843530,-539.61846108,0.00020998,2]
[322215738,1712881843541,-164.29640163,0.00020998,2]
[322215739,1712881843551,-322.63777059,0.00020998,2]
[322215740,1712881843561,-306.56774793,0.00020998,2]
[322215741,1712881843570,-296.89473455,0.00020998,2]
[322215742,1712881843582,-235.16568713,0.00020998,2]
[322215743,1712881843593,-652029.43135473,0.00020998,2]
[322215744,1712881843623,-4464.0715597,0.00020998,2]
[322215749,1712881846122,-861.80000004,0.00020998,2]
[322215750,1712881846179,-952.901944,0.00020998,2]
[322215751,1712881861712,1412.36296071,0.00019947,2]
[322215776,1712881946504,-3488.68195188,0.00020519,2]
[322215777,1712881946530,-236.30320235,0.0002052,2]
[322215778,1712881946555,-503.9147,0.00020521,2]
[322215779,1712881946580,-1538.56,0.00020648,2]
[322215780,1712881946604,-250.89815982,0.00020786,2]
[322215781,1712881946629,-152.96337254,0.00020788,2]
[322215782,1712881946656,-1178.7148,0.00020798,2]
[322215783,1712881946684,-100000.0,0.00020798,2]
[322215784,1712881946711,-322.01431739,0.000209,2]
[322215785,1712881946739,-200.0,0.00020996,2]
[322215786,1712881946766,-155.0,0.00020996,2]
[322215787,1712881946789,-342.43500003,0.00020996,2]
[322215788,1712881946816,-166.91997935,0.00020996,2]
[322215789,1712881946844,-155.0,0.00020996,2]
[322215790,1712881946872,-1240.66300341,0.00020996,2]
[322215791,1712881946897,-446.98536618,0.00020996,2]
[322215792,1712881946923,-200.94723338,0.00020996,2]
[322215793,1712881946948,-679.11259617,0.00020996,2]
[322215794,1712881946974,-1296.06527448,0.00020996,2]
[322215795,1712881947001,-297.25185244,0.00020996,2]
[322215796,1712881947029,-3806.21157863,0.00020996,2]
[322215797,1712881947058,-495.87483595,0.00020996,2]
[322215798,1712881947085,-155.15838837,0.00020996,2]
[322215799,1712881947110,-503.41693526,0.00020996,2]
[322215800,1712881947139,-3633.9781,0.00020996,2]
[322215801,1712881947164,-150.01,0.00020997,2]
[322215802,1712881947187,-978.51715914,0.00020997,2]
[322215803,1712881947213,-382.86132369,0.00020997,2]
[322215804,1712881947242,-157.041209,0.00020997,3]
[322215805,1712881947270,-157.041209,0.00020997,3]
[322215806,1712881947298,-157.041209,0.00020997,3]
[322215807,1712881947324,-157.041209,0.00020997,3]
[322215808,1712881947349,-26413.37603354,0.00020998,2]
[322215810,1712882202737,23900.0,0.00020416,2]
[322215813,1712882348056,231.01,0.00020132,2]
[322215814,1712882369576,430.77,0.00018261,2]
[322215815,1712882381871,2141.44,0.00020132,2]
[322215817,1712882419481,3178.37,0.00020103,2]
[322215820,1712882495482,800.0,0.00020107,2]
[322215821,1712882495658,1025.37,0.00020107,2]
[322215822,1712882500626,203.31,0.0002027,2]
[322215823,1712882500829,203.31,0.00020326,2]
[322215824,1712882501045,203.31,0.00020382,2]
[322215825,1712882501460,203.31,0.00020437,2]
[322215826,1712882501691,203.31,0.00020493,2]
[322215828,1712882554777,787.34,0.00020086,2]
[322215829,1712882583340,200.0,0.00019926,2]
[322215830,1712882615559,500.0,0.00019929,2]
[322215831,1712882661703,259.63,0.00019956,2]
[322215832,1712882697202,6692.6486292,0.0003,60]
[322215833,1712882721191,500.0,0.00019941,2]
[322215837,1712882753317,691.19,0.00019941,2]
[322215838,1712882806995,231.01,0.00019972,2]
[322215843,1712882851628,409.23,0.00018042,2]
[322215844,1712882851838,409.23,0.00020306,2]
[322215845,1712882895794,-203.31,0.00020548,2]
[322215846,1712882895820,-203.31,0.00020604,2]
[322215847,1712882895847,-203.31,0.00020659,2]
[322215848,1712882895872,-23222.98713138,0.00020698,2]
[322215849,1712882895897,-4782.07708329,0.00020698,2]
[322215850,1712882895921,-1172.153,0.00020698,2]
[322215851,1712882895944,-209.5712,0.00020698,2]
[322215852,1712882895968,-433.9206,0.00020698,2]
[322215853,1712882895992,-1000.0,0.00020698,2]
[322215854,1712882896015,-2500.0,0.00020698,2]
[322215855,1712882896043,-203.31,0.00020715,2]
[322215856,1712882896069,-203.31,0.00020771,2]
[322215857,1712882896093,-152.96337254,0.00020788,2]
[322215858,1712882896118,-590.7412,0.0002079,2]
[322215859,1712882896143,-155.36461146,0.00020797,2]
[322215860,1712882896169,-245000.0,0.00020798,2]
[322215861,1712882896192,-1100.2976,0.00020798,2]
[322215862,1712882896217,-1593.69301434,0.000208,2]
[322215863,1712882896245,-203.31,0.00020826,2]
[322215864,1712882896268,-200.0,0.00020829,2]
[322215865,1712882896291,-1000.0,0.00020829,2]
[322215866,1712882896315,-200.0,0.00020829,2]
[322215867,1712882896337,-500.0,0.00020829,2]
[322215868,1712882896362,-499.99,0.00020829,2]
[322215869,1712882896385,-200.0,0.0002083,2]
[322215870,1712882896409,-1000.0,0.0002083,2]
[322215871,1712882896432,-1000.0,0.0002083,2]
[322215872,1712882896455,-200.0,0.0002083,2]
[322215873,1712882896478,-500.0,0.0002083,2]
[322215874,1712882896500,-200.0,0.0002083,2]
[322215875,1712882896529,-203.31,0.00020882,2]
[322215876,1712882896554,-322.01431735,0.00020897,2]
[322215877,1712882896576,-1000.0,0.00020898,2]
[322215878,1712882896599,-500.0,0.00020898,2]
[322215879,1712882896622,-1851.9596,0.00020898,2]
[322215880,1712882896645,-1489.09726964,0.00020898,2]
[322215889,1712882965750,683.24,0.00020298,2]
[322215890,1712883014218,162.64,0.00020449,2]
[322215895,1712883032234,-162.64,0.00020567,2]
[322215896,1712883032248,-20900.68841826,0.00020598,2]
[322215897,1712883032258,-162.64,0.00020685,2]
[322215898,1712883032268,-12495.69685403,0.00020698,2]
[322215899,1712883032286,-947.14190502,0.00020698,2]
[322215900,1712883032344,-404.69128552,0.00020698,2]
[322215901,1712883032357,-231152.46995543,0.00020698,2]
[322215902,1712883032367,-500.0,0.00020698,2]
[322215903,1712883032379,-1000.0,0.00020698,2]
[322215904,1712883032396,-19399.6004,0.00020698,2]
[322215905,1712883032405,-162.64,0.00020804,2]
[322215906,1712883032415,-302.075852,0.00020822,2]
[322215907,1712883032427,-51256.74484173,0.00020898,2]
[322215908,1712883032513,-3320.20089736,0.00020898,2]
[322215916,1712883038346,-43933.95699127,0.00020898,2]
[322215917,1712883038357,-5840.66817547,0.000209,2]
[322215918,1712883038368,-7500.0,0.000209,2]
[322215919,1712883038390,-154.25230942,0.000209,2]
[322215920,1712883038407,-322.01431735,0.000209,2]
[322215921,1712883038416,-167.83,0.00020907,2]
[322215922,1712883038427,-162.64,0.00020922,2]
[322215923,1712883038438,-157.041209,0.00020996,3]
[322215924,1712883038447,-157.041209,0.00020996,3]
[322215925,1712883038458,-437.69382043,0.00020996,2]
[322215926,1712883038469,-236.06366444,0.00020997,2]
[322215927,1712883038479,-157.041209,0.00020997,3]
[322215928,1712883038488,-157.041209,0.00020997,3]
[322215929,1712883038497,-157.041209,0.00020997,3]
[322215930,1712883038507,-187899.1818648,0.00020998,2]
[322215932,1712883038885,-14684.61395679,0.00020998,2]
[322215933,1712883038896,-200.0,0.00020998,2]
[322215934,1712883038907,-778.48348,0.00020998,2]
[322215935,1712883038918,-6205.10762654,0.00020999,2]
[322215936,1712883038929,-481.02185025,0.00020999,2]
[322215937,1712883038944,-500.0,0.00020999,2]
[322215938,1712883038955,-520.31636735,0.00020999,2]
[322215939,1712883038965,-773.0,0.00021,2]
[322215940,1712883038975,-7506.36517298,0.00021,2]
[322215941,1712883039008,-734392.38881022,0.00021,2]
[322215942,1712883039018,-116340.58009198,0.00021,2]
[322215943,1712883039028,-171644.5497547,0.00021,2]
[322215944,1712883039038,-128703.72614019,0.00021,2]
[322215945,1712883039047,-350.0,0.00021,3]
[322215946,1712883039057,-22131.6327277,0.0002102,2]
[322215947,1712883039066,-2998.9642019,0.00021034,2]
[322215948,1712883039076,-162.64,0.00021041,2]
[322215949,1712883039085,-1204.59871068,0.00021157,2]
[322215950,1712883039095,-162.64,0.00021159,2]
[322215951,1712883039105,-200.0,0.00021208,2]
[322215952,1712883039115,-167.02,0.00021212,2]
[322215953,1712883039124,-162.64,0.00021277,2]
[322215954,1712883039134,-217.24,0.00021299,2]
[322215955,1712883039143,-162.64,0.00021396,2]
[322215956,1712883039153,-200.0,0.0002142,2]
[322215957,1712883039162,-164.35,0.0002144,2]
[322215958,1712883039172,-164.35,0.00021475,2]
[322215959,1712883039181,-164.35,0.00021511,2]
[322215960,1712883039192,-162.64,0.00021514,2]
[322215961,1712883039201,-164.35,0.00021547,2]
[322215962,1712883039211,-302.075852,0.00021644,2]
[322215963,1712883039220,-199.82,0.00021918,2]
[322215964,1712883039230,-250.0,0.00021918,2]
[322215965,1712883039239,-250.0,0.00021918,2]
[322215966,1712883039249,-800.0,0.00021973,2]
[322215967,1712883039258,-299.43234261,0.00022,2]
[322215968,1712883039267,-1593.69301433,0.000221,2]
[322215969,1712883039276,-199.13,0.00022249,2]
[322215970,1712883039286,-302.075852,0.00022466,2]
[322215971,1712883039295,-800.0,0.00022548,2]
[322215972,1712883039304,-409.23,0.0002257,2]
[322215973,1712883039314,-800.0,0.00022621,2]
[322215974,1712883039324,-307.11461416,0.00023,2]
[322215975,1712883039333,-400.0,0.00023,3]
[322215976,1712883039342,-199.13,0.00023036,2]
[322215977,1712883039351,-683.24,0.00023037,2]
[322215978,1712883039360,-200.0,0.00023075,2]
[322215979,1712883039370,-1000.0,0.00023288,2]
[322215980,1712883039379,-1000.0,0.00023288,2]
[322215981,1712883039389,-1000.0,0.00023288,2]
[322215982,1712883039401,-1000.0,0.00023288,2]
[322215983,1712883039410,-1000.0,0.00023288,2]
[322215984,1712883039419,-1000.0,0.00023288,2]
[322215985,1712883039429,-1000.0,0.00023288,2]
[322215986,1712883039443,-1000.0,0.00023288,2]
[322215987,1712883039454,-1000.0,0.00023288,2]
[322215988,1712883039463,-930.0,0.00023288,2]
[322215989,1712883039475,-302.075852,0.00023288,2]
[322215990,1712883039486,-179.45,0.00023368,2]
[322215991,1712883039496,-4782.07708329,0.00023389,2]
[322215992,1712883039504,-1593.69301433,0.000234,2]
[322215993,1712883039514,-179.45,0.00023485,2]
[322215994,1712883039524,-20900.68841824,0.0002359,2]
[322215995,1712883039534,-5840.66817539,0.00023793,2]
[322215996,1712883039543,-199.13,0.00023823,2]
[322215997,1712883039552,-302.075852,0.0002411,2]
[322215998,1712883039562,-1000.0,0.000243,2]
[322215999,1712883039572,-284.771409,0.000243,2]
[322216000,1712883039581,-167.86,0.00024336,2]
[322216001,1712883039591,-199.13,0.0002461,2]
[322216002,1712883039600,-431.37210144,0.00024655,2]
[322216003,1712883039610,-1593.69301433,0.000247,2]
[322216004,1712883039619,-2013.72943584,0.000248,2]
[322216005,1712883039629,-150.0,0.000248,2]
[322216006,1712883039639,-409.23,0.00024834,2]
[322216007,1712883039649,-302.075852,0.00024932,2]
[322216008,1712883039658,-218.58382044,0.00025,2]
[322216009,1712883039668,-155.0,0.00025,2]
[322216010,1712883039678,-2603.91013845,0.00025,2]
[322216011,1712883039689,-5310.07871045,0.00025,2]
[322216012,1712883039699,-450.0,0.00025,3]
[322216013,1712883039709,-800.0,0.00025134,2]
[322216014,1712883039718,-150.0,0.000253,2]
[322216015,1712883039728,-199.13,0.00025397,2]
[322216016,1712883039737,-2703.2934065,0.00025451,2]
[322216017,1712883039746,-3261.62961533,0.00025708,2]
[322216018,1712883039756,-302.075852,0.00025753,2]
[322216019,1712883039766,-683.24,0.00025777,2]
[322216020,1712883039775,-150.0,0.000258,2]
[322216021,1712883039785,-200.0,0.0002596,2]
[322216022,1712883039795,-778.48349,0.00025998,2]
[322216023,1712883039805,-1593.69301433,0.00026,2]
[322216024,1712883039815,-4782.07708329,0.00026079,2]
[322216025,1712883039825,-154.2523094,0.00026114,2]
[322216026,1712883039835,-199.13,0.00026184,2]
[322216027,1712883039845,-157.041209,0.00026298,5]
[322216028,1712883039854,-150.0,0.000263,2]
[322216029,1712883039864,-963.0,0.00026534,2]
[322216030,1712883039874,-327.34,0.00026534,2]
[322216031,1712883039883,-459.0,0.00026534,2]
[322216032,1712883039893,-150.0,0.00026534,2]
[322216033,1712883039903,-529.459,0.00026534,2]
[322216034,1712883039914,-443.619,0.00026534,2]
[322216035,1712883039923,-299.468,0.00026534,2]
[322216036,1712883039935,-220.749,0.00026534,2]
[322216037,1712883039945,-214.0,0.00026534,2]
[322216038,1712883039954,-354.0,0.00026534,2]
[322216039,1712883039964,-4792.0,0.00026534,2]
[322216040,1712883039974,-223.372,0.00026534,2]
[322216041,1712883039983,-2861.772,0.00026534,2]
[322216042,1712883039993,-1312.0,0.00026534,2]
[322216043,1712883040003,-37530.0,0.00026534,2]
[322216044,1712883040012,-199.826,0.00026534,2]
[322216045,1712883040022,-237.40503908,0.0002657,2]
[322216046,1712883040031,-302.075852,0.00026575,2]
[322216047,1712883040040,-20900.68841824,0.00026583,2]
[322216048,1712883040050,-156.90417457,0.00026672,2]
[322216049,1712883040059,-157.11212976,0.00026676,2]
[322216050,1712883040069,-5840.66817539,0.00026686,2]
[322216054,1712883040079,-150.10511676,0.0002678,2]
[322216055,1712883040276,-150.0,0.000268,2]
[322216056,1712883040286,-640.70477182,0.00026848,2]
[322216057,1712883040296,-154.09758037,0.00026873,2]
[322216058,1712883040306,-156.32372445,0.00026878,2]
[322216059,1712883040315,-153.65190147,0.0002689,2]
[322216060,1712883040324,-199.13,0.00026971,2]
[322216061,1712883040334,-154.05344875,0.00026973,2]
[322216062,1712883040343,-680.85846107,0.00027,2]
[322216063,1712883040353,-10957.47991719,0.00027,2]
[322216064,1712883040363,-88983.13567817,0.00027,2]
[322216065,1712883040373,-500.0,0.00027,3]
[322216066,1712883040383,-409.23,0.00027098,2]
[322216067,1712883040393,-2595.0,0.0002729,2]
[322216068,1712883040406,-1000.0,0.00027297,2]
[322216069,1712883040416,-10000.0,0.00027297,2]
[322216070,1712883040426,-177.38769492,0.00027297,2]
[322216071,1712883040439,-1437.9595129,0.00027297,2]
[322216072,1712883040448,-693.73304677,0.00027297,13]
[322216073,1712883040458,-286.05183614,0.00027297,2]
[322216074,1712883040469,-168.18178648,0.00027297,2]
[322216075,1712883040480,-176.79388861,0.00027297,5]
[322216076,1712883040490,-812.58069725,0.00027297,2]
[322216077,1712883040500,-347.43946486,0.00027297,2]
[322216078,1712883040509,-4556.9388401,0.00027297,2]
[322216079,1712883040519,-157.041209,0.00027298,5]
[322216080,1712883040529,-150.0,0.000273,2]
[322216081,1712883040539,-1593.69301433,0.000273,3]
[322216082,1712883040548,-154.05344875,0.00027316,2]
[322216083,1712883040558,-463479.65222395,0.00027396,2]
[322216084,1712883040576,-245138.41980847,0.00027396,2]
[322216085,1712883040585,-783953.99372996,0.00027397,7]
[322216086,1712883040613,-1050.0797701,0.00027397,7]
[322216087,1712883040625,-1512.22940124,0.00027397,7]
[322216088,1712883040637,-43851.66555887,0.00027397,7]
[322216089,1712883040784,-705.12000003,0.00027397,7]
[322216091,1712883044845,-971.82984486,0.00027297,2]
[322216092,1712883044855,-777.62573051,0.00027397,7]
[322216093,1712883045116,-3783.0836595,0.00021006,2]
[322216094,1712883045127,-71391.75556816,0.00027397,7]
[322216095,1712883045138,-475.67259041,0.00027397,7]
[322216097,1712883046435,-2998.22151165,0.00027397,7]
[322216098,1712883046474,-114875.58294709,0.00027397,7]
[322216099,1712883046483,-690.0,0.00027397,2]
[322216100,1712883046492,-500.0,0.00027397,2]
[322216101,1712883046502,-500.0,0.00027397,2]
[322216102,1712883046511,-500.0,0.00027397,2]
[322216103,1712883046520,-500.0,0.00027397,2]
[322216104,1712883046530,-500.0,0.00027397,2]
[322216105,1712883046539,-215.99189234,0.00027397,2]
[322216106,1712883046549,-500.0,0.00027397,2]
[322216107,1712883046558,-500.0,0.00027397,2]
[322216108,1712883046568,-500.0,0.00027397,2]
[322216109,1712883046577,-500.0,0.00027397,2]
[322216110,1712883046586,-500.0,0.00027397,2]
[322216111,1712883046596,-507.73392188,0.00027397,2]
[322216112,1712883046605,-500.0,0.00027397,2]
[322216113,1712883046614,-240.04331075,0.00027397,2]
[322216114,1712883046624,-500.0,0.00027397,2]
[322216115,1712883046633,-500.0,0.00027397,2]
[322216116,1712883046642,-500.0,0.00027397,2]
[322216117,1712883046652,-500.0,0.00027397,2]
[322216118,1712883046661,-500.0,0.00027397,2]
[322216120,1712883046670,-500.0,0.00027397,2]
[322216122,1712883046680,-500.0,0.00027397,2]
[322216124,1712883046689,-500.0,0.00027397,2]
[322216126,1712883046698,-574.16885424,0.00027397,2]
[322216128,1712883046708,-500.0,0.00027397,2]
[322216130,1712883046717,-500.0,0.00027397,2]
[322216132,1712883046726,-496.28362288,0.00027397,2]
[322216134,1712883046735,-586.58864606,0.00027397,2]
[322216136,1712883046746,-500.0,0.00027397,2]
[322216138,1712883046755,-538.52045806,0.00027397,2]
[322216139,1712883046765,-534.94577928,0.00027397,2]
[322216141,1712883046774,-500.0,0.00027397,2]
[322216143,1712883046783,-500.0,0.00027397,2]
[322216145,1712883046792,-500.0,0.00027397,2]
[322216147,1712883046801,-500.0,0.00027397,2]
[322216149,1712883046810,-500.0,0.00027397,2]
[322216151,1712883046819,-500.0,0.00027397,2]
[322216152,1712883046828,-500.0,0.00027397,2]
[322216154,1712883046837,-500.0,0.00027397,2]
[322216155,1712883046847,-500.0,0.00027397,2]
[322216157,1712883046856,-500.0,0.00027397,2]
[322216159,1712883046866,-500.0,0.00027397,2]
[322216160,1712883046886,-500.0,0.00027397,2]
[322216162,1712883046896,-500.0,0.00027397,2]
[322216163,1712883046905,-500.0,0.00027397,2]
[322216164,1712883046914,-500.0,0.00027397,2]
[322216165,1712883046924,-500.0,0.00027397,2]
[322216166,1712883046933,-500.0,0.00027397,2]
[322216167,1712883046943,-500.0,0.00027397,2]
[322216168,1712883046953,-500.0,0.00027397,2]
[322216169,1712883046962,-500.0,0.00027397,2]
[322216170,1712883046971,-500.0,0.00027397,2]
[322216171,1712883046980,-500.0,0.00027397,2]
[322216172,1712883046989,-500.0,0.00027397,2]
[322216173,1712883046998,-500.0,0.00027397,2]
[322216174,1712883047007,-500.0,0.00027397,2]
[322216175,1712883047016,-500.0,0.00027397,2]
[322216176,1712883047026,-500.0,0.00027397,2]
[322216177,1712883047035,-500.0,0.00027397,2]
[322216178,1712883047044,-500.0,0.00027397,2]
[322216179,1712883047053,-500.0,0.00027397,2]
[322216180,1712883047062,-500.0,0.00027397,2]
[322216181,1712883047072,-500.0,0.00027397,2]
[322216182,1712883047081,-500.0,0.00027397,2]
[322216183,1712883047090,-500.0,0.00027397,2]
[322216184,1712883047099,-500.0,0.00027397,2]
[322216185,1712883047108,-500.0,0.00027397,2]
[322216186,1712883047118,-500.0,0.00027397,2]
[322216187,1712883047127,-500.0,0.00027397,2]
[322216188,1712883047137,-523.31024304,0.00027397,2]
[322216189,1712883047146,-500.0,0.00027397,2]
[322216190,1712883047155,-500.0,0.00027397,2]
[322216191,1712883047164,-500.0,0.00027397,2]
[322216192,1712883047174,-500.0,0.00027397,2]
[322216193,1712883047183,-500.0,0.00027397,2]
[322216194,1712883047193,-500.0,0.00027397,2]
[322216195,1712883047274,-500.0,0.00027397,2]
[322216196,1712883047283,-500.0,0.00027397,2]
[322216197,1712883047292,-500.0,0.00027397,2]
[322216198,1712883047300,-500.0,0.00027397,2]
[322216199,1712883047309,-500.0,0.00027397,2]
[322216200,1712883047319,-500.0,0.00027397,2]
[322216201,1712883047328,-500.0,0.00027397,2]
[322216202,1712883047337,-500.0,0.00027397,2]
[322216203,1712883047345,-500.0,0.00027397,2]